[Event "Mentese WGM 2019"]
[Site "Mentese"]
[Date "2019.06.26"]
[Round "9.5"]
[White "Aydin, Gulenay"]
[Black "Khomeriki, Nino"]
[Result "0-1"]
[ECO "C48"]
[WhiteElo "1967"]
[BlackElo "2313"]
[Annotator "NA"]
[PlyCount "100"]
[EventDate "2019.06.24"]
[EventType "schev"]
[EventCountry "TUR"]
[SourceTitle "playchess.com"]
[Source "ChessBase"]
[SourceQuality "1"]
[TimeControl "5400+30"]

1. e4 {[%emt 0:00:30]} e5 {[%emt 0:00:30]} 2. Nf3 {[%emt 0:00:00]} Nc6 {[%emt 0:00:00]} 3. Nc3 {[%emt 0:00:00]} Nf6 {[%emt 0:00:00]} 4. Bb5 {[%emt 0:00:00]} Bc5 {[%emt 0:00:00]} 5. d3 {[%emt 0:00:00]} O-O {[%emt 0:02:00]} 6. Bg5 {[%emt 0:01:30] C48: Four Knights: 4 Bb5, replies other than 4...Bb4} (6. Bxc6 dxc6 7. Be3 Bd6 8. h3 c5 9. g4 Nd7 10. Ne2 Nb8 11. Ng3 Nc6 12. Nf5 Re8 13. h4 Bf8 {1-0 (37) So,W (2778)-Karjakin,S (2782) Stavanger 2018}) 6... h6 {[%emt 0:08:30]} 7. Bh4 {[%emt 0:00:30]} g5 {[%emt 0:07:30]} 8. Bg3 {[%emt 0:00:30]} d6 {[%emt 0:00:30]} 9. Qd2 {[%emt 0:05:30]} Nd4 {[%emt 0:07:30]} 10. Bc4 {[%emt 0:02:30]} Nxf3+ {[%emt 0:01:30]} 11. gxf3 {[%emt 0:00:30]} Bh3 $146 {[%emt 0:00:00]} ({Predecessor:} 11... c6 12. h4 Nh7 13. O-O-O Kg7 14. hxg5 hxg5 {1-0 (38) Czech,T-Tillmann,U Germany 1992}) 12. Rg1 {[%emt 0:05:30]} Kh7 {[%emt 0:00:00]} 13. O-O-O {[%emt 0:01:30]} c6 {[%emt 0:03:30]} 14. Ne2 {[%emt 0:02:30]} b5 {[%emt 0:00:30]} 15. Bb3 {[%emt 0:00:30]} a5 {[%emt 0:05:30]} 16. c3 {[%emt 0:06:30]} Bb6 {[%emt 0:09:30]} 17. d4 {[%emt 0:04:30]} Bc7 {[%emt 0:00:30]} 18. Rge1 {[%emt 0:02:30]} ({White should play} 18. Bc2 $16) 18... a4 {[%emt 0:01:30]} 19. Bc2 {[%emt 0:01:30]} Nh5 {[%emt 0:01:30]} 20. Ng1 {[%emt 0:07:30]} Be6 {[%emt 0:02:30]} 21. d5 {[%emt 0:03:30]} Bd7 {[%emt 0:00:00]} 22. dxc6 {[%emt 0:01:30]} Bxc6 {[%emt 0:00:00]} 23. a3 $15 {[%emt 0:00:30]} ({White should try} 23. Ne2 $11) 23... Qe7 {[%emt 0:01:30]} 24. Ne2 {[%emt 0:03:30]} Qf6 {[%emt 0:01:30]} 25. Qe3 {[%emt 0:02:30]} Bd7 {[%emt 0:01:30]} 26. h4 {[%emt 0:08:30]} g4 {[%emt 0:06:30]} 27. f4 {[%emt 0:03:30]} Be6 {[%emt 0:03:30]} 28. Kb1 {[%emt 0:06:30]} Bc4 {[%emt 0:01:30]} 29. fxe5 {[%emt 0:09:30]} dxe5 {[%emt 0:00:30]} 30. Nc1 {[%emt 0:00:30]} Bb6 {[%emt 0:00:30]} 31. Qd2 {[%emt 0:00:30]} Rad8 {[%emt 0:00:30]} 32. Bd3 {[%emt 0:00:30]} Nxg3 {[%emt 0:00:30]} 33. fxg3 {[%emt 0:00:30]} Qf2 {[%emt 0:00:30]} 34. Qe2 {[%emt 0:00:30]} Bxd3+ {[%emt 0:00:30]} 35. Rxd3 {[%emt 0:00:30]} Rxd3 {[%emt 0:00:30]} 36. Nxd3 {[%emt 0:00:30]} Qxg3 {[%emt 0:04:30]} 37. Rf1 {[%emt 0:09:36]} Qe3 {[%emt 0:02:30]} 38. Qc2 {[%emt 0:01:49]} Rd8 {[%emt 0:01:30]} 39. Nxe5 {[%emt 0:01:35]} g3 {[%emt 0:11:42]} 40. Rxf7+ {[%emt 0:06:14]} Kg8 {[%emt 0:00:01]} 41. Rf3 {[%emt 0:01:01]} Qe1+ {[%emt 0:00:40]} 42. Ka2 {[%emt 0:00:01]} Rd1 {[%emt 0:00:10]} 43. Rxg3+ {[%emt 0:00:07]} Kh7 {[%emt 0:06:47]} 44. Rg7+ {[%emt 0:02:07]} Kxg7 {[%emt 0:00:01]} 45. Qg2+ {[%emt 0:00:12]} Kf6 {[%emt 0:00:03]} 46. Qg6+ {[%emt 0:01:54]} Kxe5 {[%emt 0:00:05]} 47. Qf5+ {[%emt 0:01:13]} Kd6 {[%emt 0:00:01]} 48. Qf6+ {[%emt 0:00:20]} Kc7 {[%emt 0:00:09]} 49. Qe7+ {[%emt 0:00:11]} Kc8 {[%emt 0:00:35]} 50. Qe6+ {[%emt 0:00:22]} Kb7 {[%emt 0:00:04]} 0-1

[Event "Mentese WGM 2019"]
[Site "Mentese"]
[Date "2019.06.26"]
[Round "10.1"]
[White "Arda, Cagil Irmak"]
[Black "Rakhmangulova, Anastasiya"]
[Result "1/2-1/2"]
[ECO "B07"]
[WhiteElo "2069"]
[BlackElo "2217"]
[Annotator "NA"]
[PlyCount "29"]
[EventDate "2019.06.24"]
[EventType "schev"]
[EventCountry "TUR"]
[SourceTitle "playchess.com"]
[Source "ChessBase"]
[SourceQuality "1"]
[TimeControl "5400+30"]

1. e4 {[%emt 0:02:30]} d6 {[%emt 0:00:30]} 2. d4 {[%emt 0:00:00]} Nf6 {[%emt 0:00:00]} 3. Nc3 {[%emt 0:00:00]} e5 {[%emt 0:00:00]} 4. dxe5 {[%emt 0:00:00]} dxe5 {[%emt 0:00:30]} 5. Qxd8+ {[%emt 0:00:00]} Kxd8 {[%emt 0:00:00]} 6. Nf3 {[%emt 0:00:00]} Bd6 {[%emt 0:01:00]} 7. Be3 {[%emt 0:01:00]} h6 {[%emt 0:00:30]} 8. h3 {[%emt 0:00:30]} c6 {[%emt 0:01:30]} 9. Be2 {[%emt 0:00:30]} Be6 {[%emt 0:00:30]} 10. Bd3 {[%emt 0:00:30]} Bc8 {[%emt 0:01:30]} 11. Be2 {[%emt 0:00:00]} Be6 {[%emt 0:00:30]} 12. Bd3 {[%emt 0:00:00]} Bc8 {[%emt 0:00:00]} 13. Be2 {[%emt 0:00:30]} Be6 {[%emt 0:00:00]} 14. Bd3 {[%emt 0:00:00]} Bc8 {[%emt 0:00:30]} 15. Ng1 {[%emt 0:00:00]} 1/2-1/2

[Event "Mentese WGM 2019"]
[Site "Mentese"]
[Date "2019.06.26"]
[Round "10.2"]
[White "Atalik, Ekaterina"]
[Black "Zubova, Mariya"]
[Result "1-0"]
[ECO "D78"]
[WhiteElo "2452"]
[BlackElo "2164"]
[Annotator "ChessBase"]
[PlyCount "93"]
[EventDate "2019.06.24"]
[EventType "schev"]
[EventCountry "TUR"]
[SourceTitle "playchess.com"]
[Source "ChessBase"]
[SourceQuality "1"]
[TimeControl "5400+30"]

1. d4 Nf6 2. Nf3 g6 3. g3 Bg7 4. Bg2 d5 5. O-O O-O 6. c4 c6 7. Qb3 dxc4 8. Qxc4 Na6 9. Nc3 Be6 10. Qa4 Qb6 11. e4 h6 12. h3 Rfd8 13. Rd1 Rac8 14. Qc2 Ne8 15. Be3 Qa5 16. a3 c5 17. d5 Bd7 18. e5 Bf5 19. Ne4 c4 20. g4 Bd7 21. Nc3 e6 22. Nd4 Nc5 23. f4 exd5 24. Nxd5 Ba4 25. Qxc4 Bxd1 26. b4 Qa4 27. Ne7+ Kf8 28. Nxc8 Rxc8 29. Qf1 Bxg4 30. hxg4 Ne6 31. Nxe6+ fxe6 32. Bc5+ Kf7 33. Bxb7 Rd8 34. Bf3 Bf8 35. Bxf8 Kxf8 36. Qc4 Ng7 37. Bc6 Rd1+ 38. Kf2 Rd2+ 39. Ke3 Qc2 40. Qxc2 Rxc2 41. Be4 Rc3+ 42. Kd4 Rg3 43. Rc1 Rxg4 44. Rc8+ Kf7 45. Rc7+ Kf8 46. Rxa7 Rxf4 47. b5 1-0

[Event "Mentese WGM 2019"]
[Site "Mentese"]
[Date "2019.06.26"]
[Round "10.3"]
[White "Doluhanova, Evgeniya"]
[Black "Novikova, Margarita"]
[Result "1-0"]
[ECO "C44"]
[WhiteElo "2319"]
[BlackElo "2020"]
[Annotator "NA"]
[PlyCount "75"]
[EventDate "2019.06.24"]
[EventType "schev"]
[EventCountry "TUR"]
[SourceTitle "playchess.com"]
[Source "ChessBase"]
[SourceQuality "1"]
[TimeControl "5400+30"]

1. e4 e5 2. Nf3 Nf6 3. d3 Nc6 4. g3 d5 5. Qe2 dxe4 6. dxe4 Bg4 7. c3 Qd7 8. h3 Bh5 9. Bg5 Be7 10. Nbd2 h6 11. Bxf6 Bxf3 12. Qxf3 Bxf6 13. h4 Rd8 14. O-O-O Qe7 15. Qe3 a6 16. Be2 O-O 17. Rdg1 b5 18. Nb3 b4 19. Qc5 Qxc5 20. Nxc5 bxc3 21. bxc3 a5 22. Bb5 Na7 23. Ba4 Be7 24. Nd7 Ba3+ 25. Kc2 Rfe8 26. Rb1 Bd6 27. Rb7 Nc8 28. c4 Bb4 29. c5 Re7 30. Rd1 Kh8 31. Rxc7 g6 32. Kb3 Kg7 33. a3 Bxc5 34. Rxc5 Nb6 35. Rc7 Re6 36. Bb5 Nc8 37. Nc5 a4+ 38. Kc2 1-0

[Event "Mentese WGM 2019"]
[Site "Mentese"]
[Date "2019.06.26"]
[Round "10.4"]
[White "Khomeriki, Nino"]
[Black "Anacoglu, Cisel"]
[Result "1-0"]
[ECO "D13"]
[WhiteElo "2313"]
[BlackElo "1973"]
[Annotator "NA"]
[PlyCount "95"]
[EventDate "2019.06.24"]
[EventType "schev"]
[EventCountry "TUR"]
[SourceTitle "playchess.com"]
[Source "ChessBase"]
[SourceQuality "1"]
[TimeControl "5400+30"]

1. d4 d5 2. c4 c6 3. cxd5 cxd5 4. Bf4 Nc6 5. e3 Nf6 6. Nc3 Ne4 7. Bd3 Nxc3 8. bxc3 e6 9. Nf3 Bd6 10. Qc2 h6 11. O-O O-O 12. Rae1 Qe7 13. Bxd6 Qxd6 14. e4 dxe4 15. Bxe4 b6 16. Ne5 Bb7 17. f4 Rac8 18. Qf2 Na5 19. Bxb7 Nxb7 20. Re3 Qd8 21. f5 exf5 22. Qxf5 Rxc3 23. Rxc3 Qxd4+ 24. Kh1 Qxc3 25. Nd7 Nd6 26. Qd5 Qc4 27. Qxc4 Nxc4 28. Nxf8 Kxf8 29. Re1 f6 30. Kg1 Ne5 31. Rc1 a5 32. Rc7 h5 33. Kf1 Kg8 34. Ke2 Kh7 35. Rb7 Nc4 36. Kd3 Nb2+ 37. Kc2 Na4 38. Rb8 Kh6 39. Kb3 Nc5+ 40. Kc4 Nd7 41. Rd8 Ne5+ 42. Kb5 Ng4 43. Kxb6 Nxh2 44. Kxa5 Ng4 45. Kb5 Ne3 46. a4 Nxg2 47. a5 h4 48. a6 1-0

[Event "Mentese WGM 2019"]
[Site "Mentese"]
[Date "2019.06.26"]
[Round "10.5"]
[White "Dimitrijevic, Aleksandra"]
[Black "Aydin, Gulenay"]
[Result "1/2-1/2"]
[ECO "A30"]
[WhiteElo "2190"]
[BlackElo "1967"]
[Annotator "NA"]
[PlyCount "29"]
[EventDate "2019.06.24"]
[EventType "schev"]
[EventCountry "TUR"]
[SourceTitle "playchess.com"]
[Source "ChessBase"]
[SourceQuality "1"]
[TimeControl "5400+30"]

1. c4 {[%emt 0:00:30]} c5 {[%emt 0:00:30]} 2. Nc3 {[%emt 0:00:00]} Nc6 {[%emt 0:00:00]} 3. Nf3 {[%emt 0:00:00]} Nf6 {[%emt 0:00:00]} 4. g3 {[%emt 0:00:30]} g6 {[%emt 0:00:00]} 5. Bg2 {[%emt 0:00:00]} Bg7 {[%emt 0:00:00]} 6. O-O {[%emt 0:00:00]} O-O {[%emt 0:00:00]} 7. e4 {[%emt 0:00:00]} e5 {[%emt 0:00:00]} 8. d3 {[%emt 0:00:00]} d6 {[%emt 0:00:30]} 9. h3 {[%emt 0:00:30]} h6 {[%emt 0:00:00]} 10. Be3 {[%emt 0:00:00]} Be6 {[%emt 0:00:00]} 11. Nh4 {[%emt 0:00:00]} Nh5 {[%emt 0:00:00]} 12. Nf3 {[%emt 0:00:00]} Nf6 {[%emt 0:00:00]} 13. Nh4 {[%emt 0:00:00]} Nh5 {[%emt 0:00:00]} 14. Nf3 {[%emt 0:00:30]} Nf6 {[%emt 0:00:00]} 15. Nh4 {[%emt 0:02:30]} 1/2-1/2